bitfinex-derivatives/quotes_SOLF0:USTF0_20241015
["timestamp","ask_amount","ask_price","bid_price","bid_amount"]
[1729030513543,3.2598,153.39,153.37,13.2701]
[1729030516948,3.2597,153.4,153.38,3.26]
[1729030518046,3.2598,153.39,153.37,13.2701]
[1729030523743,3.2593,153.42,153.38,10.01]
[1729030524051,3.2593,153.42,153.4,10.01]
[1729030524849,1.416,153.45,153.4,10.01]
[1729030525151,2.7272,153.48,153.44,10.01]
[1729030525448,117.72318215,153.51,153.47,10.01]
[1729030525752,3.2576,153.5,153.47,13.268]
[1729030525945,3.2576,153.5,153.48,10.01]
[1729030526638,107.71318215,153.51,153.48,10.01]
[1729030526838,3.2577,153.49,153.48,10.01]
[1729030527036,107.71318215,153.51,153.48,13.2678]
[1729030527244,2.6376,153.55,153.5,10.01]
[1729030527451,1.3359,153.55,153.51,10.01]
[1729030527642,10.01,153.56,153.51,10.01]
[1729030528042,3.2567,153.54,153.51,10.01]
[1729030528239,3.2567,153.54,153.51,13.2672]
[1729030528548,3.2564,153.55,153.52,10.01]
[1729030529146,3.2566,153.54,153.52,10.01]
[1729030530554,3.2565,153.55,153.52,10.01]
[1729030530751,3.2565,153.55,153.52,15.15]
[1729030531351,10.01,153.57,153.53,13.2668]
[1729030531651,1.378,153.59,153.55,10.01]
[1729030531855,3.2561,153.57,153.53,13.2667]
[1729030532049,11.388,153.59,153.53,13.2667]
[1729030533452,3.2562,153.56,153.53,13.2667]
[1729030538551,3.2568,153.54,153.51,5.12]
[1729030538756,10.01,153.54,153.5,10.01]
[1729030538963,10.01,153.54,153.5,15.13]
[1729030539263,3.2571,153.52,153.5,15.13]
[1729030541765,3.2565,153.55,153.52,3.2569]
[1729030541971,1.4135,153.58,153.53,10.01]
[1729030542168,11.388,153.59,153.53,10.01]
[1729030542374,11.388,153.59,153.53,13.2666]
[1729030542568,1.378,153.59,153.55,10.01]
[1729030542767,10.01,153.6,153.55,10.01]
[1729030542966,3.2561,153.57,153.55,10.01]
[1729030543468,119.10897097,153.61,153.55,13.2663]
[1729030543666,119.10897097,153.61,153.55,10.01]
[1729030544373,3.256,153.57,153.55,10.01]
[1729030544761,10.01,153.57,153.54,5.12]
[1729030544978,3.2564,153.55,153.54,5.12]
[1729030561185,10.01,153.55,153.5,15.13]
[1729030561385,5.12,153.59,153.53,10.01]
[1729030561683,10.01,153.58,153.53,10.01]
[1729030561881,3.2565,153.55,153.53,10.01]
[1729030564383,3.2566,153.54,153.52,13.2669]
[1729030565781,10.01,153.57,153.52,10.01]
[1729030566878,3.2567,153.54,153.52,10.01]
[1729030567083,10.01,153.56,153.5,10.01]
[1729030567280,10.01,153.56,153.51,5.12]
[1729030567580,3.2572,153.52,153.51,5.12]
[1729030567981,3.2572,153.52,153.5,10.01]
[1729030568185,3.2572,153.52,153.5,15.13]
[1729030569388,10.01,153.55,153.49,10.01]
[1729030569695,10.01,153.55,153.5,5.12]
[1729030570382,3.2572,153.51,153.5,5.12]
[1729030571388,3.2572,153.51,153.49,15.13]
[1729030571790,3.2574,153.5,153.49,15.13]
[1729030572695,3.2574,153.5,153.49,10.01]
[1729030572890,10.01,153.53,153.49,1.8623]
[1729030573597,10.01,153.53,153.48,15.13]
[1729030573893,3.2583,153.47,153.46,5.12]
[1729030574097,10.01,153.5,153.44,10.01]
[1729030574397,3.2585,153.45,153.44,15.13]
[1729030574792,10.01,153.49,153.44,15.13]
[1729030574994,3.258,153.48,153.44,18.3887]
[1729030575199,10.01,153.49,153.44,15.13]
[1729030575498,3.2584,153.46,153.44,15.13]
[1729030578391,3.2585,153.45,153.44,15.13]
[1729030578791,3.2585,153.45,153.44,5.12]
[1729030580200,3.2585,153.45,153.44,15.13]
[1729030582800,10.01,153.48,153.43,10.01]
[1729030583100,3.2589,153.44,153.42,15.13]
[1729030583399,3.2589,153.44,153.42,10.01]
[1729030583596,3.2589,153.44,153.42,15.13]
[1729030583793,3.2589,153.43,153.42,15.13]
[1729030583997,5.12,153.51,153.42,15.13]
[1729030584198,15.13,153.51,153.45,10.01]
[1729030584405,10.01,153.52,153.47,10.01]
[1729030585404,3.2579,153.48,153.47,10.01]
[1729030587812,3.2581,153.47,153.46,15.13]
[1729030588203,10.01,153.49,153.44,10.01]
[1729030588704,3.2585,153.45,153.43,15.13]
[1729030592312,3.2585,153.45,153.43,18.3889]
[1729030599115,10.01,153.49,153.44,10.01]
[1729030599321,3.2582,153.47,153.45,13.2684]
[1729030600424,3.2582,153.47,153.46,10.01]
[1729030600614,2.6819,153.54,153.46,10.01]
[1729030600819,1.3366,153.54,153.51,10.01]
[1729030601122,21.11989506,153.57,153.52,10.01]
[1729030601123,3.2566,153.55,153.52,10.01]
[1729030601322,5.12,153.57,153.52,10.01]
[1729030601519,10.01,153.58,153.52,10.01]
[1729030601718,1.0270311,153.57,153.52,10.01]
[1729030602322,10.01,153.58,153.52,10.01]
[1729030602525,3.2567,153.54,153.52,10.01]
[1729030603119,2.7876,153.59,153.53,10.01]
[1729030603426,12.7976,153.59,153.53,10.01]
[1729030603923,3.2563,153.56,153.53,10.01]
[1729030605116,12.7976,153.59,153.52,13.2669]
[1729030605117,3.2564,153.55,153.52,13.2669]
[1729030605319,10.01,153.58,153.52,10.01]
[1729030605519,10.01,153.56,153.51,13.2671]
[1729030605931,10.01,153.56,153.51,10.01]
[1729030606726,3.2567,153.54,153.51,10.01]
[1729030608126,3.2568,153.53,153.51,10.01]
[1729030609126,3.2568,153.53,153.51,15.11]
[1729030609428,3.2568,153.53,153.51,18.3672]
[1729030614127,3.2568,153.53,153.51,13.2672]
[1729030614324,3.2568,153.53,153.51,18.3672]
[1729030615224,3.2567,153.54,153.52,13.267]
[1729030615425,2.7876,153.59,153.51,5.1]
[1729030615426,1.4064,153.59,153.53,10.01]
[1729030615619,1.3612,153.6,153.56,10.01]
[1729030615929,3.2559,153.58,153.56,13.2662]
[1729030616127,3.2559,153.58,153.56,10.01]
[1729030616827,3.2559,153.58,153.55,18.3663]
[1729030621029,10.01,153.6,153.55,18.3663]
[1729030621030,3.2561,153.57,153.55,15.11]
[1729030621234,10.01,153.59,153.55,5.1]
[1729030621532,10.01,153.58,153.53,15.11]
[1729030621829,3.2563,153.56,153.54,10.01]
[1729030624835,3.2561,153.57,153.54,13.2664]
[1729030625137,4.67910096,153.64,153.56,10.01]
[1729030625332,11.03655568,153.63,153.57,5.1]
[1729030625526,3.2556,153.59,153.57,5.1]
[1729030627433,10.01,153.61,153.56,13.2661]
[1729030627638,3.2558,153.58,153.56,5.1]
[1729030629539,3.2558,153.58,153.56,8.3561]
[1729030636741,3.2558,153.58,153.56,5.1]
[1729030636937,6.4968,153.64,153.57,10.01]
[1729030636938,3.2553,153.61,153.57,10.01]
[1729030637146,11.3646,153.65,153.6,10.01]
[1729030637642,11.3646,153.65,153.56,5.1]
[1729030637643,3.2551,153.61,153.56,5.1]
[1729030637843,10.01,153.64,153.58,10.01]
[1729030638140,10.01,153.64,153.56,5.1]
[1729030638141,3.2554,153.6,153.56,5.1]
[1729030638339,11.3646,153.65,153.59,10.01]
[1729030638536,11.3646,153.65,153.59,15.11]
[1729030638732,3.2552,153.61,153.59,10.01]
[1729030638941,3.2552,153.61,153.59,15.11]
[1729030641731,3.2552,153.61,153.59,18.3655]
[1729030643938,3.2552,153.61,153.59,5.1]
[1729030644243,3.2555,153.6,153.59,5.1]
[1729030647545,3.2555,153.6,153.58,10.01]
[1729030647744,3.2555,153.6,153.58,15.11]
[1729030648841,3.255,153.62,153.59,3.2553]
[1729030649145,3.255,153.62,153.61,10.01]
[1729030650043,14.1732,153.69,153.61,10.01]
[1729030650342,1.0,153.7,153.66,10.01]
[1729030650548,3.2538,153.68,153.64,8.3543]
[1729030650850,10.01,153.67,153.62,5.1]
[1729030651043,3.2545,153.64,153.62,15.11]
[1729030651344,1.3125,153.68,153.62,15.11]
[1729030651939,3.2546,153.64,153.62,15.11]
[1729030653043,10.01,153.69,153.63,10.01]
[1729030653252,11.01,153.7,153.65,10.01]
[1729030655042,1.0,153.7,153.66,10.01]
[1729030655641,3.2538,153.68,153.66,10.01]
[1729030657850,3.2538,153.68,153.66,15.11]
[1729030659245,3.2538,153.67,153.66,15.11]
[1729030659551,3.2538,153.67,153.66,10.01]
[1729030660248,3.254,153.66,153.65,5.1]
[1729030660457,3.254,153.66,153.65,15.11]
[1729030661142,3.254,153.66,153.65,5.1]
[1729030662350,3.2543,153.65,153.64,10.01]
[1729030662651,3.2543,153.65,153.64,15.11]
[1729030663254,3.2543,153.65,153.64,5.1]
[1729030666954,3.2543,153.65,153.64,15.11]
[1729030670252,3.2543,153.65,153.64,10.01]
[1729030671452,3.2536,153.69,153.65,3.2541]
[1729030671653,1.0,153.7,153.67,10.01]
[1729030672259,1.0,153.7,153.69,10.01]
[1729030672851,11.01,153.7,153.6,2.7191]
[1729030673056,10.01,153.69,153.64,10.01]
[1729030674052,3.254,153.67,153.64,13.2644]
[1729030675352,3.254,153.67,153.65,10.01]
[1729030680568,3.254,153.67,153.66,10.01]
[1729030684770,3.2535,153.69,153.66,13.2639]
[1729030684966,3.2535,153.69,153.67,10.01]
[1729030691979,10.01,153.69,153.65,5.08]
[1729030692679,10.01,153.68,153.64,5.08]
[1729030692878,11.3362,153.68,153.64,5.08]
[1729030693182,3.2543,153.65,153.64,5.08]
[1729030695576,1.3262,153.68,153.6,2.7191]
[1729030695777,10.01,153.66,153.61,5.08]
[1729030696281,3.2544,153.65,153.61,5.08]
[1729030696577,10.01,153.67,153.62,10.01]
[1729030696885,3.2549,153.62,153.61,5.08]
[1729030697190,2.6528,153.68,153.59,15.09]
[1729030697191,10.01,153.64,153.59,15.09]
[1729030697485,3.2551,153.61,153.59,15.09]
[1729030698482,3.2551,153.61,153.59,18.3455]
[1729030698681,10.01,153.61,153.5,70.32]
[1729030698878,10.01,153.61,153.56,10.01]
[1729030699280,3.256,153.57,153.56,10.01]
[1729030699886,3.256,153.57,153.55,5.08]
[1729030700083,3.2562,153.56,153.55,5.08]
[1729030701880,3.2562,153.56,153.53,18.3467]
[1729030705384,10.01,153.61,153.54,10.01]
[1729030705589,3.2559,153.58,153.56,10.01]
[1729030705782,3.2559,153.58,153.55,3.2562]
[1729030706088,14.1681,153.62,153.57,10.01]
[1729030706592,3.2557,153.58,153.57,10.01]
[1729030714490,3.2557,153.58,153.56,10.01]
[1729030715596,14.1681,153.62,153.56,10.01]
[1729030716290,3.2559,153.58,153.56,10.01]
[1729030716491,10.01,153.59,153.53,15.09]
[1729030716801,10.01,153.58,153.52,5.08]
[1729030716992,3.2565,153.55,153.52,8.3369]
[1729030717892,3.2565,153.55,153.53,10.01]
[1729030718085,10.01,153.58,153.53,10.01]
[1729030718988,3.2563,153.56,153.54,10.01]
[1729030719389,10.01,153.59,153.54,10.01]
[1729030719891,3.2564,153.55,153.54,10.01]
[1729030720492,3.2564,153.55,153.53,10.01]
[1729030727511,10.01,153.59,153.53,10.01]
[1729030727711,7.48329731,153.62,153.53,10.01]
[1729030727712,10.01,153.58,153.53,10.01]
[1729030727900,10.01,153.58,153.52,5.08]
[1729030728300,3.2561,153.57,153.52,5.08]
[1729030728497,10.01,153.58,153.52,5.08]
[1729030729003,3.2567,153.54,153.51,18.3472]
[1729030729605,3.2567,153.54,153.51,8.3372]
[1729030729800,3.2567,153.54,153.52,10.01]
[1729030730507,10.01,153.56,153.51,5.08]
[1729030730702,3.257,153.52,153.51,15.09]
[1729030731506,3.257,153.52,153.51,10.01]
[1729030734307,3.2572,153.51,153.5,5.08]
[1729030734502,3.2572,153.51,153.5,15.09]
[1729030734811,10.01,153.56,153.5,15.09]
[1729030735314,3.2566,153.55,153.5,15.09]
[1729030735510,10.01,153.56,153.52,10.01]
[1729030736418,3.2568,153.53,153.52,10.01]
[1729030736717,10.01,153.56,153.51,10.01]
[1729030737416,3.2572,153.52,153.51,10.01]
[1729030740611,5.08,153.59,153.51,10.01]
[1729030740810,3.2567,153.54,153.53,10.01]
[1729030741007,5.08,153.59,153.53,10.01]
[1729030741213,3.2561,153.57,153.54,10.01]
[1729030741413,3.2561,153.57,153.56,10.01]
[1729030741609,9.2381,153.62,153.54,5.08]
[1729030741813,3.2557,153.58,153.57,10.01]
[1729030743317,3.2557,153.58,153.54,8.3365]
[1729030743622,3.2557,153.58,153.57,10.01]
[1729030744427,3.2552,153.61,153.58,3.2557]
[1729030744610,11.3562,153.66,153.6,10.01]
[1729030744818,11.3562,153.66,153.54,8.39303485]
[1729030744819,1.3462,153.66,153.62,10.01]
[1729030745313,2.7839,153.69,153.64,10.01]
[1729030745524,1.02619835,153.68,153.59,5.08]
[1729030745720,12.7939,153.69,153.64,10.01]
[1729030745915,3.2543,153.65,153.64,10.01]
[1729030746619,2.7839,153.69,153.64,10.01]
[1729030747021,3.2541,153.66,153.64,10.01]
[1729030749023,3.2543,153.65,153.64,10.01]
[1729030749826,3.2543,153.65,153.62,3.2548]
[1729030750028,3.2543,153.65,153.64,10.01]
[1729030752724,3.2543,153.65,153.63,10.01]
[1729030754329,3.2545,153.64,153.61,8.3351]
[1729030754528,3.2545,153.64,153.62,10.01]
[1729030756040,3.2545,153.64,153.63,10.01]
[1729030756245,10.01,153.68,153.63,10.01]
[1729030756445,10.01,153.68,153.64,10.01]
[1729030757444,1.4155,153.69,153.67,10.01]
[1729030757639,1.0,153.7,153.68,10.01]
[1729030758550,3.2535,153.69,153.68,10.01]
[1729030759146,1.0,153.7,153.68,10.01]
[1729030760240,1.0,153.7,153.69,3.2534]
[1729030760438,1.0,153.7,153.65,5.08]
[1729030760637,1.0,153.7,153.66,10.01]
[1729030760842,3.2536,153.69,153.66,13.264]
[1729030761050,11.01,153.7,153.65,5.08]
[1729030761246,1.0,153.7,153.66,10.01]
[1729030761546,3.2536,153.69,153.66,10.01]
[1729030761742,10.01,153.69,153.65,5.08]
[1729030761943,3.254,153.67,153.65,5.08]
[1729030762448,3.2543,153.65,153.63,10.01]
[1729030762655,10.01,153.68,153.62,15.07]
[1729030763545,10.01,153.68,153.62,10.01]
[1729030763742,10.01,153.68,153.55,3.9931]
[1729030763743,10.01,153.66,153.61,5.06]
[1729030764249,3.2546,153.64,153.61,5.06]
[1729030764451,10.01,153.66,153.61,5.06]
[1729030764752,10.01,153.66,153.49,6.515]
[1729030764753,114.01,153.62,153.38,6.79643252]
[1729030764947,10.01,153.54,153.48,10.01]
[1729030765548,3.2572,153.52,153.48,10.01]
[1729030765845,10.01,153.52,153.46,10.01]
[1729030767047,10.01,153.52,153.45,5.06]
[1729030767048,10.01,153.51,153.44,5.08]
[1729030767263,10.01,153.49,153.43,16.4241]
[1729030767553,3.2577,153.49,153.45,10.01]
[1729030767942,3.2577,153.49,153.43,25.313]
[1729030768945,15.64,153.53,153.43,25.313]
[1729030768946,5.08,153.54,153.45,18.8983]
[1729030769444,5.08,153.54,153.48,15.64]
[1729030770050,1.0,153.7,153.53,15.64]
[1729030770348,1.418,153.63,153.53,20.72]
[1729030770553,4.75807714,153.63,153.53,20.72]
[1729030770745,3.2558,153.58,153.53,20.72]
[1729030770940,1.418,153.63,153.53,20.72]
[1729030771350,3.2557,153.59,153.53,20.72]
[1729030771655,1.418,153.63,153.56,15.64]
[1729030772361,3.2554,153.6,153.56,15.64]
[1729030772653,1.418,153.63,153.57,5.08]
[1729030772856,3.2553,153.61,153.57,5.08]
[1729030773056,1.3644,153.65,153.58,15.64]
[1729030773352,5.08,153.66,153.58,15.64]
[1729030773657,3.2551,153.62,153.58,15.64]
[1729030774655,3.2551,153.61,153.58,15.64]
[1729030776657,1.4008,153.68,153.58,15.64]
[1729030776860,3.2547,153.64,153.6,18.8952]
[1729030777153,3.2547,153.64,153.6,23.9752]
[1729030777747,1.0,153.7,153.63,15.64]
[1729030777950,1.0,153.7,153.66,15.64]
[1729030778155,1.0,153.7,153.67,15.64]
[1729030778358,1.0,153.7,153.68,5.08]
[1729030778553,1.0,153.7,153.67,15.64]
[1729030778765,1.0,153.7,153.66,20.72]
[1729030780052,4.2532,153.7,153.66,23.9739]
[1729030781062,3.2536,153.68,153.66,20.82]
[1729030781247,1.0,153.7,153.66,5.18]
[1729030781451,1.0,153.7,153.63,1.4035]
[1729030781662,1.0,153.7,153.64,5.18]
[1729030781663,3.2542,153.66,153.64,5.18]
[1729030782661,3.2542,153.66,153.63,1.4035]
[1729030782865,3.2542,153.66,153.64,5.18]
[1729030784158,3.2542,153.66,153.63,1.4035]
[1729030784359,3.2542,153.66,153.64,5.18]
[1729030786567,3.2546,153.64,153.62,15.64]
[1729030786870,1.0,153.7,153.62,20.82]
[1729030787362,3.2546,153.64,153.62,20.82]
[1729030787766,3.2546,153.64,153.62,5.18]
[1729030787973,3.255,153.62,153.61,5.18]
[1729030788864,15.64,153.68,153.59,1.3228]
[1729030789062,15.64,153.66,153.59,5.18]
[1729030789662,3.2552,153.61,153.59,5.18]
[1729030790062,15.64,153.66,153.58,7.8908]
[1729030790266,15.64,153.66,153.58,6.5577]
[1729030790970,3.2553,153.61,153.58,6.5577]
[1729030791775,3.2555,153.6,153.58,6.5577]
[1729030798371,3.2555,153.59,153.58,5.18]
[1729030798566,17.0239,153.66,153.57,5.18]
[1729030798771,1.02644589,153.65,153.57,5.18]
[1729030799876,3.2557,153.59,153.57,5.18]
[1729030800072,15.64,153.64,153.57,5.18]
[1729030800275,1.02652993,153.63,153.55,5.18]
[1729030800577,3.2561,153.57,153.55,5.18]
[1729030804076,3.2558,153.58,153.56,3.2562]
[1729030804271,6.5319,153.63,153.55,5.18]
[1729030804576,3.2553,153.6,153.55,8.4363]
[1729030804770,6.5319,153.63,153.55,8.4363]
[1729030804983,1.02659966,153.62,153.55,8.4363]
[1729030805369,1.02659966,153.62,153.55,5.18]
[1729030805574,6.5319,153.63,153.57,3.2559]
[1729030805778,3.2556,153.59,153.56,15.64]
[1729030806574,3.2555,153.59,153.56,18.8961]
[1729030809679,1.3519,153.63,153.56,15.64]
[1729030809886,3.2561,153.57,153.55,5.1]
[1729030811474,3.2563,153.56,153.53,4.5795]
[1729030811676,15.64,153.6,153.52,5.1]
[1729030812287,8.31933424,153.61,153.52,5.1]
[1729030812479,1.02673334,153.6,153.52,5.1]
[1729030814988,3.2566,153.55,153.52,8.3569]
[1729030816583,8.31933424,153.61,153.5,1.3972]
[1729030816584,3.257,153.52,153.5,5.1]
[1729030816982,3.257,153.52,153.49,25.4178]
[1729030817193,1.444,153.57,153.49,22.1603]
[1729030817488,1.444,153.57,153.5,15.64]
[1729030817793,6.5037,153.62,153.54,18.8965]
[1729030818095,1.0267777,153.61,153.54,20.74]
[1729030818885,3.2556,153.59,153.54,20.74]
[1729030819092,6.5037,153.62,153.54,20.74]
[1729030819388,1.02677078,153.61,153.54,20.74]
[1729030819987,3.2561,153.57,153.54,20.74]
[1729030820393,3.2561,153.57,153.54,5.1]
[1729030820787,3.2564,153.55,153.54,5.1]
[1729030820986,18.94934126,153.61,153.54,5.1]
[1729030821191,1.02677853,153.6,153.54,5.1]
[1729030822286,3.2563,153.56,153.54,5.1]
[1729030822688,3.256,153.57,153.54,8.3565]
[1729030823687,3.2564,153.56,153.54,5.1]
[1729030825301,1.4037,153.62,153.54,20.74]
[1729030825599,3.2555,153.6,153.57,3.2558]
[1729030825993,3.2556,153.59,153.56,18.8961]
[1729030826499,1.444,153.63,153.56,15.64]
[1729030826694,3.2554,153.6,153.57,3.256]
[1729030827397,3.2555,153.59,153.56,18.8961]
[1729030831702,3.2555,153.59,153.56,15.64]
[1729030831903,3.2555,153.59,153.57,3.2559]
[1729030832401,3.2555,153.59,153.56,18.8961]
[1729030833999,17.084,153.63,153.54,25.3706]
[1729030834200,17.084,153.63,153.54,9.7306]
[1729030834391,3.2561,153.57,153.54,6.474]
[1729030834596,17.084,153.63,153.55,3.2563]
[1729030835706,1.444,153.63,153.57,3.2559]
[1729030836296,1.444,153.63,153.56,15.64]
[1729030836499,1.444,153.63,153.58,3.2556]
[1729030836700,1.444,153.63,153.56,15.64]
[1729030836701,3.2554,153.6,153.56,15.64]
[1729030837005,3.2554,153.6,153.57,3.2559]
[1729030837404,17.084,153.63,153.54,4.6305]
[1729030837608,17.084,153.63,153.55,5.1]
[1729030838200,3.2558,153.58,153.55,8.3563]
[1729030839314,3.256,153.57,153.55,8.3563]
[1729030839708,3.256,153.57,153.55,5.1]
[1729030844505,3.2559,153.58,153.56,3.2562]
[1729030844808,5.14,153.62,153.55,5.1]
[1729030845814,15.64,153.6,153.54,5.14]
[1729030847509,3.2564,153.55,153.54,5.14]
[1729030848112,3.2568,153.53,153.5,18.4382]
[1729030848318,3.2568,153.53,153.51,5.14]
[1729030848816,3.2568,153.53,153.51,8.3972]
[1729030849215,3.2568,153.53,153.51,3.2572]
[1729030851514,3.2569,153.53,153.51,3.2572]
[1729030853915,3.2569,153.53,153.52,10.01]
[1729030856010,3.256,153.57,153.55,3.2564]
[1729030856214,3.256,153.57,153.55,10.01]
[1729030856414,3.256,153.57,153.56,10.01]
[1729030856928,3.2557,153.59,153.56,10.01]
[1729030857119,3.2557,153.59,153.58,10.01]
[1729030859820,3.2557,153.59,153.56,3.256]
[1729030860627,3.2553,153.61,153.57,18.8958]
[1729030861028,1.444,153.63,153.57,18.8958]
[1729030861215,3.2555,153.6,153.57,18.8958]
[1729030861829,1.444,153.63,153.55,1.3956]
[1729030863522,3.2554,153.6,153.55,1.3956]
[1729030863925,1.444,153.63,153.55,1.3956]
[1729030864124,17.084,153.63,153.55,6.5356]
[1729030864924,3.2556,153.59,153.56,3.2561]
[1729030865639,3.2556,153.59,153.55,6.5356]
[1729030865822,3.2556,153.59,153.56,3.2561]
[1729030870036,3.2556,153.59,153.55,6.5356]
[1729030870235,1.444,153.63,153.56,15.64]
[1729030871038,3.2551,153.61,153.56,15.64]
[1729030872438,3.2551,153.61,153.57,3.2558]
[1729030873138,3.2551,153.61,153.56,15.64]
[1729030873339,3.2551,153.61,153.58,3.2557]
[1729030873545,3.2553,153.6,153.58,3.2557]
[1729030875329,3.2563,153.56,153.54,5.08]
[1729030875625,15.64,153.62,153.54,5.08]
[1729030875830,3.2555,153.6,153.57,3.2559]
[1729030876028,3.2555,153.6,153.56,15.64]
[1729030876437,3.2555,153.6,153.57,3.2559]
[1729030876628,3.2548,153.63,153.58,20.72]
[1729030877032,1.3766,153.66,153.6,15.64]
[1729030877238,3.2544,153.65,153.6,15.64]
[1729030877532,6.08,153.7,153.6,15.64]
[1729030877844,3.2542,153.66,153.62,15.64]
[1729030878045,3.2542,153.66,153.62,20.72]
[1729030878437,3.2542,153.66,153.63,3.2546]
[1729030879942,3.2542,153.66,153.64,10.0]
[1729030880542,3.254,153.67,153.64,10.0]
[1729030880737,3.254,153.67,153.66,10.0]
[1729030881237,1.0,153.7,153.66,10.0]
[1729030881547,1.0,153.7,153.68,10.0]
[1729030881747,1.0,153.7,153.67,10.0]
[1729030881941,10.0,153.69,153.65,5.06]
[1729030882140,10.0,153.68,153.65,5.06]
[1729030882341,1.0,153.7,153.61,11.3401]
[1729030882342,3.2546,153.64,153.61,11.3401]
[1729030882543,3.2546,153.64,153.62,5.06]
[1729030882748,3.2546,153.64,153.59,70.34]
[1729030882749,10.0,153.64,153.59,80.34]
[1729030883044,3.255,153.62,153.6,5.06]
[1729030883553,10.0,153.64,153.6,5.06]
[1729030883752,3.2551,153.61,153.6,5.06]
[1729030884237,5.06,153.67,153.6,5.06]
[1729030884238,10.0,153.63,153.6,5.06]
[1729030884434,3.2549,153.62,153.6,5.06]
[1729030884639,2.8211,153.69,153.61,10.0]
[1729030884840,10.0,153.67,153.61,10.0]
[1729030885049,3.2546,153.64,153.61,10.0]
[1729030885751,3.2546,153.64,153.62,10.0]
[1729030886546,10.0,153.67,153.62,10.0]
[1729030886845,2.8211,153.69,153.63,10.0]
[1729030886846,12.8211,153.69,153.63,10.0]
[1729030887647,1.3768,153.69,153.65,10.0]
[1729030887943,1.3768,153.69,153.64,20.68]
[1729030888450,3.2541,153.66,153.64,20.68]
[1729030889044,3.2539,153.67,153.64,20.68]
[1729030889248,1.0,153.7,153.64,20.68]
[1729030889748,4.2534,153.7,153.66,15.62]
[1729030889940,1.0,153.7,153.66,15.62]
[1729030890142,1.0,153.7,153.65,1.4089]
[1729030890448,1.0,153.7,153.64,20.68]
[1729030890449,1.0,153.7,153.64,5.06]
[1729030891543,3.2536,153.69,153.64,5.06]
[1729030891745,1.0,153.7,153.64,5.06]
[1729030892445,1.0,153.7,153.65,15.62]
[1729030893150,3.2536,153.69,153.65,15.62]
[1729030895457,3.2537,153.68,153.65,15.62]
[1729030896155,1.0,153.7,153.65,15.62]
[1729030896358,3.2539,153.67,153.65,15.62]
[1729030899762,1.0,153.7,153.66,15.62]
[1729030900562,4.2533,153.7,153.66,15.62]